[Event "The Elitserien 2024/25: round 1 - 3"]
[Site "Scandic Infra City, Kanalvagen 10, Upplands Vasby, Sweden"]
[Date "2024.10.06"]
[Round "3.37"]
[White "Rydstrom, Tom"]
[Black "Aronsson, Marten"]
[Result "1-0"]
[TimeControl "90 minutes for 40 moves + 30 minutes for the rest of the game + 30 seconds per move from move one."]
[WhiteTitle "FM"]
[BlackTitle "FM"]
[WhiteFideId "1714830"]
[BlackFideId "1724223"]
[WhiteElo "2274"]
[BlackElo "2310"]

1. e4 {[%clk 01:26:03]} {[%emt 00:04:56]} e5 {[%clk 01:30:34]} {[%emt
00:00:28]} 2. Nf3 {[%clk 01:26:25]} {[%emt 00:00:07]} Nc6 {[%clk 01:30:58]}
{[%emt 00:00:06]} 3. Bb5 {[%clk 01:26:43]} {[%emt 00:00:12]} Nf6 {[%clk
01:30:20]} {[%emt 00:01:08]} 4. d3 {[%clk 01:27:08]} {[%emt 00:00:05]} Bc5
{[%clk 01:30:35]} {[%emt 00:00:15]} 5. c3 {[%clk 01:25:33]} {[%emt 00:02:06]}
d6 {[%clk 01:30:53]} {[%emt 00:00:11]} 6. O-O {[%clk 01:25:11]} {[%emt
00:00:51]} Bb6 {[%clk 01:29:11]} {[%emt 00:02:14]} 7. Re1 {[%clk 01:24:00]}
{[%emt 00:01:40]} O-O {[%clk 01:29:27]} {[%emt 00:00:14]} 8. Nbd2 {[%clk
01:21:52]} {[%emt 00:02:37]} Ne7 {[%clk 01:27:51]} {[%emt 00:02:06]} 9. Nc4
{[%clk 01:17:22]} {[%emt 00:05:00]} Ng6 {[%clk 01:27:22]} {[%emt 00:00:59]} 10.
Nxb6 {[%clk 01:15:49]} {[%emt 00:02:04]} axb6 {[%clk 01:27:45]} {[%emt
00:00:07]} 11. d4 {[%clk 01:12:52]} {[%emt 00:03:27]} Qe7 {[%clk 01:23:59]}
{[%emt 00:04:16]} 12. Bd3 {[%clk 01:10:16]} {[%emt 00:03:06]} Be6 {[%clk
01:13:36]} {[%emt 00:10:53]} 13. a4 {[%clk 01:09:41]} {[%emt 00:01:04]} Bd7
{[%clk 01:09:55]} {[%emt 00:04:12]} 14. Bd2 {[%clk 01:10:07]} {[%emt 00:00:04]}
Rfe8 {[%clk 01:09:06]} {[%emt 00:01:19]} 15. h3 {[%clk 01:07:54]} {[%emt
00:02:43]} Bc6 {[%clk 01:03:32]} {[%emt 00:06:04]} 16. b4 {[%clk 01:01:11]}
{[%emt 00:07:12]} exd4 {[%clk 00:59:09]} {[%emt 00:04:54]} 17. cxd4 {[%clk
00:55:20]} {[%emt 00:06:21]} Qd7 {[%clk 00:54:18]} {[%emt 00:05:21]} 18. Qb1
{[%clk 00:54:45]} {[%emt 00:01:05]} Rxa4 {[%clk 00:46:49]} {[%emt 00:07:58]} 19.
Rxa4 {[%clk 00:54:59]} {[%emt 00:00:17]} Bxa4 {[%clk 00:47:15]} {[%emt
00:00:04]} 20. b5 {[%clk 00:53:17]} {[%emt 00:02:12]} c6 {[%clk 00:47:22]}
{[%emt 00:00:23]} 21. e5 {[%clk 00:48:53]} {[%emt 00:04:54]} dxe5 {[%clk
00:43:04]} {[%emt 00:04:48]} 22. dxe5 {[%clk 00:49:20]} {[%emt 00:00:03]} Nd5
{[%clk 00:42:58]} {[%emt 00:00:35]} 23. Bf5 {[%clk 00:49:35]} {[%emt 00:00:16]}
Qe7 {[%clk 00:36:49]} {[%emt 00:06:39]} 24. e6 {[%clk 00:48:14]} {[%emt
00:01:51]} Bxb5 {[%clk 00:30:14]} {[%emt 00:07:05]} 25. Ng5 {[%clk 00:26:28]}
{[%emt 00:22:15]} f6 {[%clk 00:29:54]} {[%emt 00:00:50]} 26. Nxh7 {[%clk
00:25:48]} {[%emt 00:01:11]} Ne5 {[%clk 00:22:36]} {[%emt 00:07:48]} 27. Ng5
{[%clk 00:20:59]} {[%emt 00:05:19]} fxg5 {[%clk 00:13:59]} {[%emt 00:09:06]} 28.
Rxe5 {[%clk 00:21:21]} {[%emt 00:00:09]} Qd6 {[%clk 00:13:46]} {[%emt
00:00:42]} 29. Re1 {[%clk 00:13:41]} {[%emt 00:08:11]} Nf4 {[%clk 00:05:27]}
{[%emt 00:08:49]} 30. Bxf4 {[%clk 00:13:10]} {[%emt 00:01:01]} Qxf4 {[%clk
00:05:52]} {[%emt 00:00:13]} 31. e7 {[%clk 00:12:13]} {[%emt 00:01:21]} g4
{[%clk 00:02:31]} {[%emt 00:03:50]} 32. hxg4 {[%clk 00:12:08]} {[%emt
00:00:36]} Qd6 {[%clk 00:01:56]} {[%emt 00:01:05]} 33. Be6+ {[%clk 00:12:25]}
{[%emt 00:00:12]} 1-0

[Event "The Elitserien 2024/25: round 1 - 3"]
[Site "Scandic Infra City, Kanalvagen 10, Upplands Vasby, Sweden"]
[Date "2024.10.06"]
[Round "3.38"]
[White "Andersson, Fredrik"]
[Black "Lindborg, Patrik"]
[Result "1-0"]
[TimeControl "90 minutes for 40 moves + 30 minutes for the rest of the game + 30 seconds per move from move one."]
[WhiteTitle "FM"]
[WhiteFideId "1706187"]
[BlackFideId "1707507"]
[WhiteElo "2242"]
[BlackElo "2124"]

1. e4 {[%clk 01:30:57]} {[%emt 00:00:02]} c5 {[%clk 01:30:54]} {[%emt
00:00:06]} 2. Nf3 {[%clk 01:31:17]} {[%emt 00:00:10]} e6 {[%clk 01:31:20]}
{[%emt 00:00:04]} 3. d4 {[%clk 01:31:38]} {[%emt 00:00:10]} cxd4 {[%clk
01:31:40]} {[%emt 00:00:10]} 4. Nxd4 {[%clk 01:32:04]} {[%emt 00:00:04]} Qb6
{[%clk 01:31:32]} {[%emt 00:00:37]} 5. Nb3 {[%clk 01:28:08]} {[%emt 00:04:26]}
Nf6 {[%clk 01:31:16]} {[%emt 00:00:45]} 6. Bd3 {[%clk 01:19:01]} {[%emt
00:09:38]} d5 {[%clk 01:30:16]} {[%emt 00:01:30]} 7. exd5 {[%clk 01:08:32]}
{[%emt 00:10:59]} Nxd5 {[%clk 01:30:42]} {[%emt 00:00:04]} 8. O-O {[%clk
01:08:26]} {[%emt 00:00:36]} Nd7 {[%clk 01:23:13]} {[%emt 00:08:00]} 9. Re1
{[%clk 01:01:18]} {[%emt 00:07:38]} Be7 {[%clk 01:15:36]} {[%emt 00:08:06]} 10.
N1d2 {[%clk 00:50:06]} {[%emt 00:11:43]} N7f6 {[%clk 01:09:48]} {[%emt
00:06:17]} 11. Nf3 {[%clk 00:41:14]} {[%emt 00:09:22]} O-O {[%clk 01:02:47]}
{[%emt 00:07:32]} 12. c3 {[%clk 00:35:45]} {[%emt 00:05:58]} Bd7 {[%clk
00:57:52]} {[%emt 00:05:25]} 13. Nbd4 {[%clk 00:30:01]} {[%emt 00:06:14]} Rfd8
{[%clk 00:54:15]} {[%emt 00:04:06]} 14. Qe2 {[%clk 00:28:36]} {[%emt 00:01:57]}
Qc7 {[%clk 00:48:40]} {[%emt 00:06:04]} 15. Ne5 {[%clk 00:26:42]} {[%emt
00:02:23]} Be8 {[%clk 00:46:34]} {[%emt 00:02:36]} 16. h3 {[%clk 00:22:50]}
{[%emt 00:04:23]} Bd6 {[%clk 00:41:36]} {[%emt 00:05:28]} 17. Nb5 {[%clk
00:15:10]} {[%emt 00:08:09]} Bxb5 {[%clk 00:40:20]} {[%emt 00:01:47]} 18. Bxb5
{[%clk 00:15:38]} {[%emt 00:00:01]} a6 {[%clk 00:37:03]} {[%emt 00:03:47]} 19.
Ba4 {[%clk 00:15:38]} {[%emt 00:00:30]} h6 {[%clk 00:24:10]} {[%emt 00:13:23]}
20. Bb3 {[%clk 00:15:18]} {[%emt 00:00:50]} b5 {[%clk 00:18:01]} {[%emt
00:06:39]} 21. Ng4 {[%clk 00:14:28]} {[%emt 00:01:20]} Bf4 {[%clk 00:14:08]}
{[%emt 00:04:23]} 22. Nxf6+ {[%clk 00:12:35]} {[%emt 00:02:23]} Nxf6 {[%clk
00:14:06]} {[%emt 00:00:32]} 23. Qf3 {[%clk 00:10:38]} {[%emt 00:02:26]} Bxc1
{[%clk 00:14:12]} {[%emt 00:00:24]} 24. Raxc1 {[%clk 00:11:06]} {[%emt
00:00:02]} Rab8 {[%clk 00:13:12]} {[%emt 00:01:30]} 25. Rcd1 {[%clk 00:09:17]}
{[%emt 00:02:19]} a5 {[%clk 00:11:20]} {[%emt 00:02:22]} 26. a3 {[%clk
00:09:09]} {[%emt 00:00:39]} b4 {[%clk 00:08:59]} {[%emt 00:02:51]} 27. cxb4
{[%clk 00:08:12]} {[%emt 00:01:27]} axb4 {[%clk 00:09:28]} {[%emt 00:00:01]} 28.
a4 {[%clk 00:07:24]} {[%emt 00:01:19]} Rxd1 {[%clk 00:08:16]} {[%emt 00:01:41]}
29. Qxd1 {[%clk 00:04:23]} {[%emt 00:03:31]} Qf4 {[%clk 00:06:02]} {[%emt
00:02:43]} 30. Qd3 {[%clk 00:03:08]} {[%emt 00:01:47]} Rc8 {[%clk 00:04:45]}
{[%emt 00:01:46]} 31. g3 {[%clk 00:03:12]} {[%emt 00:00:26]} Qg5 {[%clk
00:04:36]} {[%emt 00:00:39]} 32. h4 {[%clk 00:03:21]} {[%emt 00:00:22]} Qc5
{[%clk 00:04:48]} {[%emt 00:00:18]} 33. Rd1 {[%clk 00:02:51]} {[%emt 00:01:00]}
Ng4 {[%clk 00:03:31]} {[%emt 00:01:46]} 34. Qd4 {[%clk 00:03:00]} {[%emt
00:00:21]} Qf5 {[%clk 00:01:47]} {[%emt 00:02:15]} 35. Rd2 {[%clk 00:01:24]}
{[%emt 00:02:05]} g6 {[%clk 00:01:16]} {[%emt 00:01:02]} 36. Kg2 {[%clk
00:00:51]} {[%emt 00:01:03]} e5 {[%clk 00:01:08]} {[%emt 00:00:38]} 37. Qd7
{[%clk 00:00:54]} {[%emt 00:00:28]} Qe4+ {[%clk 00:00:32]} {[%emt 00:01:06]} 38.
f3 {[%clk 00:01:07]} {[%emt 00:00:16]} Ne3+ {[%clk 00:00:51]} {[%emt 00:00:11]}
39. Kf2 {[%clk 00:01:07]} {[%emt 00:00:30]} 1-0

[Event "The Elitserien 2024/25: round 1 - 3"]
[Site "Scandic Infra City, Kanalvagen 10, Upplands Vasby, Sweden"]
[Date "2024.10.06"]
[Round "3.39"]
[White "Lindberg, Bengt"]
[Black "Larsson, Anders"]
[Result "1-0"]
[TimeControl "90 minutes for 40 moves + 30 minutes for the rest of the game + 30 seconds per move from move one."]
[WhiteTitle "IM"]
[BlackTitle "FM"]
[WhiteFideId "1700359"]
[BlackFideId "1712128"]
[WhiteElo "2337"]
[BlackElo "2211"]

1. e4 {[%clk 01:30:52]} {[%emt 00:00:07]} c5 {[%clk 01:30:32]} {[%emt
00:00:29]} 2. Nf3 {[%clk 01:31:08]} {[%emt 00:00:13]} d6 {[%clk 01:30:48]}
{[%emt 00:00:13]} 3. d4 {[%clk 01:31:27]} {[%emt 00:00:11]} cxd4 {[%clk
01:30:57]} {[%emt 00:00:22]} 4. Nxd4 {[%clk 01:31:47]} {[%emt 00:00:10]} Nf6
{[%clk 01:30:33]} {[%emt 00:00:54]} 5. Nc3 {[%clk 01:32:07]} {[%emt 00:00:09]}
g6 {[%clk 01:30:36]} {[%emt 00:00:27]} 6. Be3 {[%clk 01:32:29]} {[%emt
00:00:09]} Nc6 {[%clk 01:29:35]} {[%emt 00:01:31]} 7. f3 {[%clk 01:32:51]}
{[%emt 00:00:07]} h5 {[%clk 01:26:58]} {[%emt 00:03:07]} 8. Nxc6 {[%clk
01:27:34]} {[%emt 00:05:47]} bxc6 {[%clk 01:13:19]} {[%emt 00:14:10]} 9. Bc4
{[%clk 01:27:45]} {[%emt 00:00:19]} Qa5 {[%clk 00:53:13]} {[%emt 00:20:36]} 10.
Qd2 {[%clk 01:24:45]} {[%emt 00:03:30]} Bg7 {[%clk 00:51:46]} {[%emt 00:01:58]}
11. h3 {[%clk 01:17:27]} {[%emt 00:07:47]} h4 {[%clk 00:46:49]} {[%emt
00:05:28]} 12. O-O {[%clk 01:02:27]} {[%emt 00:15:28]} Nh5 {[%clk 00:40:40]}
{[%emt 00:06:40]} 13. Rf2 {[%clk 01:02:39]} {[%emt 00:00:18]} Be6 {[%clk
00:39:26]} {[%emt 00:01:45]} 14. Bxe6 {[%clk 00:55:28]} {[%emt 00:07:40]} fxe6
{[%clk 00:39:26]} {[%emt 00:00:31]} 15. Qd3 {[%clk 00:55:48]} {[%emt 00:00:10]}
Qb4 {[%clk 00:31:23]} {[%emt 00:08:33]} 16. Nd1 {[%clk 00:52:04]} {[%emt
00:04:13]} e5 {[%clk 00:28:37]} {[%emt 00:03:16]} 17. c3 {[%clk 00:47:33]}
{[%emt 00:05:02]} Qb5 {[%clk 00:27:57]} {[%emt 00:01:10]} 18. c4 {[%clk
00:47:33]} {[%emt 00:00:30]} Qa6 {[%clk 00:27:58]} {[%emt 00:00:29]} 19. Rd2
{[%clk 00:45:36]} {[%emt 00:02:25]} O-O {[%clk 00:24:51]} {[%emt 00:03:38]} 20.
Nf2 {[%clk 00:44:10]} {[%emt 00:01:56]} Kh7 {[%clk 00:21:29]} {[%emt 00:03:53]}
21. c5 {[%clk 00:40:59]} {[%emt 00:03:41]} Qxd3 {[%clk 00:19:01]} {[%emt
00:02:58]} 22. Rxd3 {[%clk 00:40:06]} {[%emt 00:01:22]} Nf4 {[%clk 00:15:53]}
{[%emt 00:03:38]} 23. Bxf4 {[%clk 00:39:55]} {[%emt 00:00:43]} exf4 {[%clk
00:16:12]} {[%emt 00:00:10]} 24. cxd6 {[%clk 00:40:18]} {[%emt 00:00:06]} exd6
{[%clk 00:14:48]} {[%emt 00:01:54]} 25. Rxd6 {[%clk 00:38:10]} {[%emt
00:02:39]} c5 {[%clk 00:13:51]} {[%emt 00:01:27]} 26. Rc1 {[%clk 00:32:13]}
{[%emt 00:06:26]} Rfd8 {[%clk 00:11:37]} {[%emt 00:02:44]} 27. Rxd8 {[%clk
00:30:55]} {[%emt 00:01:49]} Rxd8 {[%clk 00:12:02]} {[%emt 00:00:04]} 28. Rc2
{[%clk 00:31:14]} {[%emt 00:00:11]} Bd4 {[%clk 00:09:25]} {[%emt 00:03:08]} 29.
Kf1 {[%clk 00:31:25]} {[%emt 00:00:19]} Rb8 {[%clk 00:04:31]} {[%emt 00:05:24]}
30. b3 {[%clk 00:29:53]} {[%emt 00:02:01]} a5 {[%clk 00:03:01]} {[%emt
00:02:01]} 31. Rc4 {[%clk 00:30:15]} {[%emt 00:00:08]} Rd8 {[%clk 00:02:52]}
{[%emt 00:00:39]} 32. Nd3 {[%clk 00:30:34]} {[%emt 00:00:10]} Be3 {[%clk
00:02:11]} {[%emt 00:01:13]} 33. Ke2 {[%clk 00:30:58]} {[%emt 00:00:04]} Kg7
{[%clk 00:01:04]} {[%emt 00:01:37]} 34. Ra4 {[%clk 00:17:21]} {[%emt 00:14:07]}
Ra8 {[%clk 00:01:26]} {[%emt 00:00:08]} 35. Ne5 {[%clk 00:17:10]} {[%emt
00:00:41]} Bd4 {[%clk 00:01:26]} {[%emt 00:00:31]} 36. Nc4 {[%clk 00:17:16]}
{[%emt 00:00:23]} Bc3 {[%clk 00:01:46]} {[%emt 00:00:12]} 37. Kd3 {[%clk
00:17:30]} {[%emt 00:00:14]} Bb4 {[%clk 00:01:46]} {[%emt 00:00:31]} 38. Nb6
{[%clk 00:16:33]} {[%emt 00:01:27]} Rd8+ {[%clk 00:00:51]} {[%emt 00:01:26]} 39.
Nd5 {[%clk 00:16:57]} {[%emt 00:00:05]} g5 {[%clk 00:01:03]} {[%emt 00:00:19]}
40. a3 {[%clk 00:17:04]} {[%emt 00:00:21]} Be1 {[%clk 00:00:51]} {[%emt
00:00:42]} 41. Ke2 {[%clk 00:17:04]} {[%emt 00:00:30]} 1-0

[Event "The Elitserien 2024/25: round 1 - 3"]
[Site "Scandic Infra City, Kanalvagen 10, Upplands Vasby, Sweden"]
[Date "2024.10.06"]
[Round "3.40"]
[White "Jonsson, Mikael"]
[Black "Sevastianov, Andrii"]
[Result "1-0"]
[TimeControl "90 minutes for 40 moves + 30 minutes for the rest of the game + 30 seconds per move from move one."]
[WhiteFideId "1702041"]
[BlackFideId "1730240"]
[WhiteElo "2176"]
[BlackElo "2160"]

1. e4 {[%clk 01:30:48]} {[%emt 00:00:12]} e5 {[%clk 01:30:50]} {[%emt
00:00:10]} 2. Nf3 {[%clk 01:31:01]} {[%emt 00:00:17]} Nc6 {[%clk 01:31:12]}
{[%emt 00:00:07]} 3. Bb5 {[%clk 01:31:11]} {[%emt 00:00:20]} a6 {[%clk
01:31:34]} {[%emt 00:00:09]} 4. Ba4 {[%clk 01:31:32]} {[%emt 00:00:08]} Bc5
{[%clk 01:31:57]} {[%emt 00:00:07]} 5. O-O {[%clk 01:27:39]} {[%emt 00:04:23]}
Nge7 {[%clk 01:31:33]} {[%emt 00:00:51]} 6. Nxe5 {[%clk 01:23:29]} {[%emt
00:04:44]} Nxe5 {[%clk 01:20:21]} {[%emt 00:11:40]} 7. d4 {[%clk 01:23:42]}
{[%emt 00:00:18]} b5 {[%clk 01:20:41]} {[%emt 00:00:09]} 8. Bb3 {[%clk
01:24:05]} {[%emt 00:00:07]} Bxd4 {[%clk 01:21:04]} {[%emt 00:00:08]} 9. Qxd4
{[%clk 01:24:29]} {[%emt 00:00:05]} d6 {[%clk 01:21:24]} {[%emt 00:00:10]} 10.
a4 {[%clk 01:19:47]} {[%emt 00:05:11]} c5 {[%clk 01:13:51]} {[%emt 00:08:04]}
11. Qe3 {[%clk 01:17:27]} {[%emt 00:02:49]} c4 {[%clk 01:13:50]} {[%emt
00:00:30]} 12. Ba2 {[%clk 01:17:23]} {[%emt 00:00:35]} O-O {[%clk 01:03:46]}
{[%emt 00:10:35]} 13. Nc3 {[%clk 01:07:21]} {[%emt 00:10:33]} Rb8 {[%clk
00:48:15]} {[%emt 00:16:00]} 14. axb5 {[%clk 01:00:21]} {[%emt 00:07:31]} axb5
{[%clk 00:48:26]} {[%emt 00:00:17]} 15. Rd1 {[%clk 00:55:06]} {[%emt 00:05:46]}
f5 {[%clk 00:38:26]} {[%emt 00:10:30]} 16. Qd4 {[%clk 00:48:46]} {[%emt
00:06:49]} fxe4 {[%clk 00:33:49]} {[%emt 00:05:08]} 17. Bg5 {[%clk 00:23:05]}
{[%emt 00:26:12]} Nf7 {[%clk 00:24:47]} {[%emt 00:09:31]} 18. Bh4 {[%clk
00:19:15]} {[%emt 00:04:20]} Qe8 {[%clk 00:23:00]} {[%emt 00:02:17]} 19. Bxe7
{[%clk 00:10:26]} {[%emt 00:09:19]} Qxe7 {[%clk 00:23:22]} {[%emt 00:00:08]} 20.
b3 {[%clk 00:10:15]} {[%emt 00:00:42]} e3 {[%clk 00:15:12]} {[%emt 00:08:40]}
21. bxc4 {[%clk 00:08:26]} {[%emt 00:02:20]} exf2+ {[%clk 00:15:19]} {[%emt
00:00:22]} 22. Qxf2 {[%clk 00:08:37]} {[%emt 00:00:18]} b4 {[%clk 00:11:41]}
{[%emt 00:04:09]} 23. Nd5 {[%clk 00:08:43]} {[%emt 00:00:25]} Qg5 {[%clk
00:11:32]} {[%emt 00:00:39]} 24. c5 {[%clk 00:06:24]} {[%emt 00:02:48]} Bg4
{[%clk 00:07:24]} {[%emt 00:04:38]} 25. Rf1 {[%clk 00:06:02]} {[%emt 00:00:53]}
b3 {[%clk 00:07:17]} {[%emt 00:00:37]} 26. Bxb3 {[%clk 00:06:10]} {[%emt
00:00:22]} Be6 {[%clk 00:06:22]} {[%emt 00:01:25]} 27. h4 {[%clk 00:04:51]}
{[%emt 00:01:49]} Qd8 {[%clk 00:06:14]} {[%emt 00:00:36]} 28. Ra7 {[%clk
00:04:53]} {[%emt 00:00:29]} Rxb3 {[%clk 00:05:46]} {[%emt 00:00:57]} 29. Ne7+
{[%clk 00:05:10]} {[%emt 00:00:14]} Kh8 {[%clk 00:05:43]} {[%emt 00:00:35]} 30.
cxb3 {[%clk 00:05:29]} {[%emt 00:00:11]} dxc5 {[%clk 00:05:09]} {[%emt
00:01:03]} 31. Qxc5 {[%clk 00:04:09]} {[%emt 00:01:51]} Bxb3 {[%clk 00:04:44]}
{[%emt 00:00:54]} 32. Nc6 {[%clk 00:03:33]} {[%emt 00:01:06]} Qc8 {[%clk
00:04:00]} {[%emt 00:01:13]} 33. Rc7 {[%clk 00:03:31]} {[%emt 00:00:32]} Qe8
{[%clk 00:03:14]} {[%emt 00:01:18]} 34. Ne5 {[%clk 00:02:45]} {[%emt 00:01:14]}
Kg8 {[%clk 00:02:55]} {[%emt 00:00:50]} 35. Nd7 {[%clk 00:02:28]} {[%emt
00:00:47]} Bc4 {[%clk 00:02:05]} {[%emt 00:01:22]} 36. Qxc4 {[%clk 00:02:20]}
{[%emt 00:00:37]} Qe3+ {[%clk 00:02:29]} {[%emt 00:00:06]} 37. Kh1 {[%clk
00:02:40]} {[%emt 00:00:08]} 1-0